{"text_format":"1","workbook":"xlsx","n_sheets":1,"sheets":["liste"],"not_rendered":{"charts":0,"images":0,"macros":1,"external_links":0,"defined_names":0,"comments":0,"pivot_tables":0},"unopened":[],"bounds":{"document_bytes":16777216,"sheet_cells":100000,"rows_first":2000,"rows_last":500,"rows_between":2000,"halvings":0,"cell_chars":16384,"cell_head_chars":4096},"cells_cut":0,"cells_raw":0,"read":"whole","date_system":"1900"}

{"sheet":"liste","index":0,"n_rows":63,"n_cols":251,"rows_kept":63,"cut":false,"hidden":false,"merged":[[1,157,1,165],[1,170,1,178],[1,183,1,191],[1,144,1,152],[1,1,1,9],[1,14,1,22],[1,27,1,35],[1,40,1,48],[1,53,1,61],[1,66,1,74],[1,79,1,87],[1,92,1,100],[1,105,1,113],[1,118,1,126],[1,131,1,139],[1,235,1,243],[1,248,1,256],[1,196,1,204],[1,209,1,217],[1,222,1,230]]}
[]
[null,{"$f":"$A10","v":"Groupe A"},null,null,null,null,null,null,null,null,null,null,null,null,{"$f":"$A11","v":"Groupe B"},null,null,null,null,null,null,null,null,null,null,null,null,{"$f":"$A12","v":"Groupe C"},null,null,null,null,null,null,null,null,null,null,null,null,{"$f":"$A13","v":"Groupe D"},null,null,null,null,null,null,null,null,null,null,null,null,{"$f":"$A14","v":"Groupe E"},null,null,null,null,null,null,null,null,null,null,null,null,{"$f":"$A15","v":"Groupe F"},null,null,null,null,null,null,null,null,null,null,null,null,{"$f":"$A16","v":"Groupe G"},null,null,null,null,null,null,null,null,null,null,null,null,{"$f":"$A17","v":"Groupe H"},null,null,null,null,null,null,null,null,null,null,null,null,{"$f":"$A18","v":"Groupe I"},null,null,null,null,null,null,null,null,null,null,null,null,{"$f":"$A19","v":"Groupe J"},null,null,null,null,null,null,null,null,null,null,null,null,{"$f":"$A20","v":"Groupe K"},null,null,null,null,null,null,null,null,null,null,null,null,{"$f":"$A21","v":"Groupe L"},null,null,null,null,null,null,null,null,null,null,null,null,{"$f":"$A22","v":"Groupe M"},null,null,null,null,null,null,null,null,null,null,null,null,{"$f":"$A23","v":"Groupe N"},null,null,null,null,null,null,null,null,null,null,null,null,{"$f":"$A24","v":"Groupe O"},null,null,null,null,null,null,null,null,null,null,null,null,{"$f":"$A25","v":"Groupe P"},null,null,null,null,null,null,null,null,null,null,null,null,{"$f":"$A26","v":"Groupe Q"},null,null,null,null,null,null,null,null,null,null,null,null,{"$f":"$A27","v":"Groupe R"},null,null,null,null,null,null,null,null,null,null,null,null,{"$f":"$A28","v":"Groupe S"},null,null,null,null,null,null,null,null,null,null,null,null,{"$f":"$A29","v":"Groupe T"}]
[null,"Code","Nom ","Catégorie",null,null,null,null,null,null,null,null,null,null,"Code","Nom ","Catégorie",null,null,null,null,null,null,null,null,null,null,"Code","Nom ","Catégorie",null,null,null,null,null,null,null,null,null,null,"Code","Nom ","Catégorie",null,null,null,null,null,null,null,null,null,null,"Code","Nom ","Catégorie",null,null,null,null,null,null,null,null,null,null,"Code","Nom ","Catégorie",null,null,null,null,null,null,null,null,null,null,"Code","Nom ","Catégorie",null,null,null,null,null,null,null,null,null,null,"Code","Nom ","Catégorie",null,null,null,null,null,null,null,null,null,null,"Code","Nom ","Catégorie",null,null,null,null,null,null,null,null,null,null,"Code","Nom ","Catégorie",null,null,null,null,null,null,null,null,null,null,"Code","Nom ","Catégorie",null,null,null,null,null,null,null,null,null,null,"Code","Nom ","Catégorie",null,null,null,null,null,null,null,null,null,null,"Code","Nom ","Catégorie",null,null,null,null,null,null,null,null,null,null,"Code","Nom ","Catégorie",null,null,null,null,null,null,null,null,null,null,"Code","Nom ","Catégorie",null,null,null,null,null,null,null,null,null,null,"Code","Nom ","Catégorie",null,null,null,null,null,null,null,null,null,null,"Code","Nom ","Catégorie",null,null,null,null,null,null,null,null,null,null,"Code","Nom ","Catégorie",null,null,null,null,null,null,null,null,null,null,"Code","Nom ","Catégorie",null,null,null,null,null,null,null,null,null,null,"Code","Nom ","Catégorie"]
[null,6,"Marcel","GroupeA",3,270,null,null,null,null,null,null,null,1,21,"GroupeB 34","CatégorieB",7,630,null,null,null,null,null,null,null,61,106,"GroupeC 10","CatégorieC",1,90,null,null,null,null,null,null,null,121,90,"GroupeD 10","CatégorieD",null,null,null,null,null,null,null,null,null,181]
[null,null,"GroupeB 34","CatégorieB",7,395,null,null,null,null,null,1,null,2,22,"GroupeB 28","CatégorieB",7,540,null,null,null,null,null,null,null,62,130,"GroupeC 11","CatégorieB",null,null,null,null,null,null,null,null,null,122,79,"GroupeD 11","CatégorieD",null,null,null,null,null,null,null,null,null,182]
[null,null,"GroupeB 28","CatégorieB",8,630,null,null,null,null,null,null,null,3,34,"GroupeB 25","CatégorieC",5,450,null,null,null,null,null,null,null,63,154,"GroupeC 12","CatégorieC",null,null,null,null,null,null,null,null,null,123,68,"GroupeD 12","CatégorieB",null,null,null,null,null,null,null,null,null,183]
[null,null,"GroupeB 25","CatégorieC",5,349,null,null,null,null,null,null,null,4,38,"GroupeB 11","CatégorieA",5,270,null,null,null,null,null,null,null,64,178,"GroupeC 13","CatégorieB",1,90,1,null,null,null,null,null,null,124,57,"GroupeD 13","CatégorieC",null,null,null,null,null,null,null,null,null,184]
[null,null,"GroupeB 11","CatégorieA",7,450,null,null,null,null,null,null,null,5,18,"GroupeB 12","CatégorieA",7,539,null,null,null,null,null,null,null,65,202,"GroupeC 14","CatégorieC",1,90,null,null,null,null,null,null,null,125,46,"GroupeD 14","CatégorieB",1,90,null,null,null,null,null,null,null,185]
[null,null,"GroupeB 12","CatégorieA",6,450,null,null,null,null,null,null,null,6,21,"pules","CatégorieD",7,585,null,null,null,null,null,null,null,66,226,"GroupeC 15","CatégorieB",null,null,null,null,null,null,null,null,null,126,35,"GroupeD 15","CatégorieC",null,null,null,null,null,null,null,null,null,186]
["Groupe A",99,"Jules","CatégorieD",8,590,1,1,2,null,null,null,null,7,22,"GroupeB 13","CatégorieB",5,450,null,null,null,null,null,null,null,67,226,"GroupeC 16","CatégorieC",null,null,null,null,null,null,null,null,null,127,24,"GroupeD 16","CatégorieB",null,null,null,null,null,null,null,null,null,187]
["Groupe B",null,"GroupeB 13","CatégorieB",6,535,null,null,null,null,null,null,null,8,34,"GroupeB 16","CatégorieC",4,270,null,null,null,null,null,1,null,68,226,"GroupeC 17","CatégorieA",null,null,null,null,null,null,null,null,null,128,13,"GroupeD 17","CatégorieC",null,null,null,null,null,null,null,null,null,188]
["Groupe C",null,"GroupeB 16","CatégorieC",4,270,null,null,null,null,null,null,null,9,38,"GroupeB 17","CatégorieD",4,175,null,null,null,null,null,null,null,69,226,"GroupeC 18","CatégorieA",null,null,null,null,null,null,null,null,null,129,15,"GroupeD 18","CatégorieB",null,null,null,null,null,null,null,null,null,189]
["Groupe D",null,"GroupeB 17","CatégorieD",5,201,null,null,null,null,null,null,null,10,42,"Lucien","CatégorieD",5,283,1,null,null,null,null,null,null,70,0,"GroupeC 19","CatégorieB",null,null,null,null,null,null,null,null,null,130,19,"GroupeD 19","CatégorieC",null,null,null,null,null,null,null,null,null,190]
["Groupe E",null,"Lucien","CatégorieD",5,229,null,null,null,null,null,null,null,11,46,"GroupeB 20","CatégorieB",2,137,null,null,null,null,null,null,null,71,226,"GroupeC 20","CatégorieD",null,null,null,null,null,null,null,null,null,131,20,"GroupeD 20","CatégorieB",null,null,null,null,null,null,null,null,null,191]
["Groupe F",null,"GroupeB 20","CatégorieB",4,282,null,null,null,null,null,null,null,12,50,"GroupeB 21","CatégorieC",3,270,null,null,null,null,null,null,null,72,226,"GroupeC 21","CatégorieD",null,null,null,null,null,null,null,null,null,132,31,"GroupeD 21","CatégorieC",1,90,1,null,null,null,null,null,null,192]
["Groupe G",null,"GroupeB 21","CatégorieC",4,360,null,null,null,null,null,null,null,13,54,"GroupeB 22","CatégorieB",2,180,null,null,null,null,null,null,null,73,226,"GroupeC 22","CatégorieB",null,null,null,null,null,null,null,null,null,133,88,"GroupeD 3","CatégorieA",null,null,null,null,null,null,null,null,null,193]
["Groupe H",null,"GroupeB 22","CatégorieB",1,90,null,null,null,null,null,null,null,14,58,"GroupeB 23","CatégorieC",2,180,null,null,null,null,null,null,null,74,0,"GroupeC 23","CatégorieC",null,null,null,null,null,null,null,null,null,134,58,"GroupeD 4","CatégorieA",null,null,null,null,null,null,null,null,null,194]
["Groupe I",null,"GroupeB 23","CatégorieC",3,12,null,null,null,null,null,null,null,15,62,"GroupeB 24","CatégorieB",2,180,null,null,null,null,null,null,null,75,226,"GroupeC 24","CatégorieB",null,null,null,null,null,null,null,null,null,135,14,"GroupeD 5","CatégorieB",null,null,null,null,null,null,null,null,null,195]
["Groupe J",null,"GroupeB 24","CatégorieB",1,90,null,null,null,null,null,null,null,16,66,"GroupeB 26","CatégorieB",null,null,null,null,null,null,null,null,null,76,226,"GroupeC 25","CatégorieC",null,null,null,null,null,null,null,null,null,136,12,"GroupeD 6","CatégorieB",null,null,null,null,null,null,null,null,null,196]
["Groupe K",null,"GroupeB 26","CatégorieB",2,180,null,null,null,null,null,1,null,17,96,"Claude","CatégorieC",4,360,3,null,null,null,null,null,null,77,226,"GroupeC 26","CatégorieB",null,null,null,null,null,null,null,null,null,137,9,"GroupeD 7","CatégorieC",1,90,null,null,null,null,null,null,null,197]
["Groupe L",null,"Claude","CatégorieC",3,270,null,null,null,null,null,null,null,18,74,"GroupeB 29","CatégorieC",1,null,null,null,null,null,null,null,null,78,78,"GroupeC 8","CatégorieC",null,null,null,null,null,null,null,null,null,138,8,"GroupeD 8","CatégorieC",null,null,null,null,null,null,null,null,null,198]
["Groupe M",123,"GroupeB 29","CatégorieC",1,null,null,null,null,null,null,null,null,19,78,"GroupeB 31","CatégorieC",null,null,null,null,null,null,null,null,null,79,82,"GroupeC 9","CatégorieB",null,null,null,null,null,null,null,null,null,139,2,"GroupeD 9","CatégorieD",null,null,null,null,null,null,null,null,null,199]
["Groupe N",null,"GroupeB 31","CatégorieC",1,23,null,null,null,null,null,null,null,20,82,"GroupeB 32","CatégorieA",1,90,null,null,null,null,null,null,null,80,null,null,null,null,null,null,null,null,null,null,null,null,140,null,null,null,null,null,null,null,null,null,null,null,null,200]
["Groupe O",null,"GroupeB 32","CatégorieA",2,104,null,null,null,null,null,null,null,21,1,"GroupeB 14","CatégorieB",3,238,null,null,null,null,null,null,null,81,null,null,null,null,null,null,null,null,null,null,null,null,141,null,null,null,null,null,null,null,null,null,null,null,null,201]
["Groupe P",null,"GroupeB 14","CatégorieB",4,247,null,null,null,null,null,null,null,22,null,null,null,null,null,null,null,null,null,null,null,null,82,null,null,null,null,null,null,null,null,null,null,null,null,142,null,null,null,null,null,null,null,null,null,null,null,null,202]
["Groupe Q",null,null,null,null,null,null,null,null,null,null,null,null,23,9,"GroupeB 30","CatégorieB",5,450,null,null,null,null,null,null,null,83,null,null,null,null,null,null,null,null,null,null,null,null,143,null,null,null,null,null,null,null,null,null,null,null,null,203]
["Groupe R",null,null,null,null,null,null,null,null,null,null,null,null,24,12,"GroupeB 33","CatégorieA",5,450,null,null,null,null,null,null,null,84,null,null,null,null,null,null,null,null,null,null,null,null,144,null,null,null,null,null,null,null,null,null,null,null,null,204]
["Groupe S",null,null,null,null,null,null,null,null,null,null,null,null,27,18,"Alfred","CatégorieA",5,360,2,null,null,null,null,null,null,85,null,null,null,null,null,null,null,null,null,null,null,null,145,null,null,null,null,null,null,null,null,null,null,null,null,205]
["Groupe T",null,null,null,null,null,null,null,null,null,null,null,null,28,24,"GroupeB 31","CatégorieC",2,180,null,null,null,null,null,null,null,86,null,null,null,null,null,null,null,null,null,null,null,null,146,null,null,null,null,null,null,null,null,null,null,null,null,206]
[null,null,null,null,null,null,null,null,null,null,null,null,null,29,30,"GroupeB 32","CatégorieA",null,null,null,null,null,null,null,null,null,87,null,null,null,null,null,null,null,null,null,null,null,null,147,null,null,null,null,null,null,null,null,null,null,null,null,207]
[null,null,null,null,null,null,null,null,null,null,null,null,null,30,36,"GroupeB 29","CatégorieC",1,90,null,null,null,null,null,null,null,88,null,null,null,null,null,null,null,null,null,null,null,null,148,null,null,null,null,null,null,null,null,null,null,null,null,208]
[null,null,null,null,null,null,null,null,null,null,null,null,null,31,42,"GroupeB 31","CatégorieC",2,90,null,null,null,null,null,null,null,89,null,null,null,null,null,null,null,null,null,null,null,null,149,null,null,null,null,null,null,null,null,null,null,null,null,209]
[null,null,null,null,null,null,null,null,null,null,null,null,null,33,48,"GroupeB 32","CatégorieA",1,90,null,null,null,null,null,null,null,90,null,null,null,null,null,null,null,null,null,null,null,null,150,null,null,null,null,null,null,null,null,null,null,null,null,210]
[null,null,null,null,null,null,null,null,null,null,null,null,null,34,54,"GroupeB 29","CatégorieC",null,null,null,null,null,null,null,null,null,91,null,null,null,null,null,null,null,null,null,null,null,null,151,null,null,null,null,null,null,null,null,null,null,null,null,211]
[null,null,null,null,null,null,null,null,null,null,null,null,null,35,60,"GroupeB 31","CatégorieC",1,90,null,null,null,null,null,null,null,92,null,null,null,null,null,null,null,null,null,null,null,null,152,null,null,null,null,null,null,null,null,null,null,null,null,212]
[null,null,null,null,null,null,null,null,null,null,null,null,null,36,66,"GroupeB 32","CatégorieC",1,58,null,null,null,null,null,null,null,93,null,null,null,null,null,null,null,null,null,null,null,null,153,null,null,null,null,null,null,null,null,null,null,null,null,213]
[null,null,null,null,null,null,null,null,null,null,null,null,null,37,72,"GroupeB 33","CatégorieC",3,100,null,null,null,null,null,null,null,94,null,null,null,null,null,null,null,null,null,null,null,null,154,null,null,null,null,null,null,null,null,null,null,null,null,214]
[null,null,null,null,null,null,null,null,null,null,null,null,null,38,78,"GroupeB 34","CatégorieC",3,179,null,null,null,null,null,null,null,95,null,null,null,null,null,null,null,null,null,null,null,null,155,null,null,null,null,null,null,null,null,null,null,null,null,215]
[null,null,null,null,null,null,null,null,null,null,null,null,null,39,84,"GroupeB 35","CatégorieC",2,10,null,null,null,null,null,1,null,96,null,null,null,null,null,null,null,null,null,null,null,null,156,null,null,null,null,null,null,null,null,null,null,null,null,216]
[null,null,null,null,null,null,null,null,null,null,null,null,null,40,90,"GroupeB 36","CatégorieC",2,2,null,null,null,null,null,null,null,97,null,null,null,null,null,null,null,null,null,null,null,null,157,null,null,null,null,null,null,null,null,null,null,null,null,217]
[null,null,null,null,null,null,null,null,null,null,null,null,null,41,96,"GroupeB 37","CatégorieC",1,null,null,null,null,null,null,null,null,98,null,null,null,null,null,null,null,null,null,null,null,null,158,null,null,null,null,null,null,null,null,null,null,null,null,218]
[null,null,null,null,null,null,null,null,null,null,null,null,null,42,102,"GroupeB 38","CatégorieC",2,null,null,null,null,null,null,null,null,99,null,null,null,null,null,null,null,null,null,null,null,null,159,null,null,null,null,null,null,null,null,null,null,null,null,219]
[null,null,null,null,null,null,null,null,null,null,null,null,null,43,108,"GroupeB 39","CatégorieC",3,null,null,null,null,null,null,null,null,100,null,null,null,null,null,null,null,null,null,null,null,null,160,null,null,null,null,null,null,null,null,null,null,null,null,220]
[null,null,null,null,null,null,null,null,null,null,null,null,null,44,null,"GroupeB 14",null,1,null,null,null,null,null,null,null,null,101,null,null,null,null,null,null,null,null,null,null,null,null,161,null,null,null,null,null,null,null,null,null,null,null,null,221]
[null,null,null,null,null,null,null,null,null,null,null,null,null,45,null,"GroupeB 15",null,2,null,null,null,null,null,null,null,null,102,null,null,null,null,null,null,null,null,null,null,null,null,162,null,null,null,null,null,null,null,null,null,null,null,null,222]
[null,null,null,null,null,null,null,null,null,null,null,null,null,46,null,"GroupeB 30",null,1,null,null,null,null,null,null,null,null,103,null,null,null,null,null,null,null,null,null,null,null,null,163,null,null,null,null,null,null,null,null,null,null,null,null,223]
[null,null,null,null,null,null,null,null,null,null,null,null,null,47,null,"GroupeB 33",null,2,null,null,null,null,null,null,null,null,104,null,null,null,null,null,null,null,null,null,null,null,null,164,null,null,null,null,null,null,null,null,null,null,null,null,224]
[null,null,null,null,null,null,null,null,null,null,null,null,null,48,null,null,null,null,null,null,null,null,null,null,null,null,105,null,null,null,null,null,null,null,null,null,null,null,null,165,null,null,null,null,null,null,null,null,null,null,null,null,225]
[null,null,null,null,null,null,null,null,null,null,null,null,null,49,null,null,null,null,null,null,null,null,null,null,null,null,106,null,null,null,null,null,null,null,null,null,null,null,null,166,null,null,null,null,null,null,null,null,null,null,null,null,226]
[null,null,null,null,null,null,null,null,null,null,null,null,null,50,null,null,null,null,null,null,null,null,null,null,null,null,107,null,null,null,null,null,null,null,null,null,null,null,null,167,null,null,null,null,null,null,null,null,null,null,null,null,227]
[null,null,null,null,null,null,null,null,null,null,null,null,null,51,null,null,null,null,null,null,null,null,null,null,null,null,108,null,null,null,null,null,null,null,null,null,null,null,null,168,null,null,null,null,null,null,null,null,null,null,null,null,228]
[null,null,null,null,null,null,null,null,null,null,null,null,null,52,null,null,null,null,null,null,null,null,null,null,null,null,109,null,null,null,null,null,null,null,null,null,null,null,null,169,null,null,null,null,null,null,null,null,null,null,null,null,229]
[null,null,null,null,null,null,null,null,null,null,null,null,null,53,null,null,null,null,null,null,null,null,null,null,null,null,110,null,null,null,null,null,null,null,null,null,null,null,null,170,null,null,null,null,null,null,null,null,null,null,null,null,230]
[null,null,null,null,null,null,null,null,null,null,null,null,null,53,null,null,null,null,null,null,null,null,null,null,null,null,111,null,null,null,null,null,null,null,null,null,null,null,null,171,null,null,null,null,null,null,null,null,null,null,null,null,231]
[null,null,null,null,null,null,null,null,null,null,null,null,null,54,null,null,null,null,null,null,null,null,null,null,null,null,112,null,null,null,null,null,null,null,null,null,null,null,null,172,null,null,null,null,null,null,null,null,null,null,null,null,232]
[null,null,null,null,null,null,null,null,null,null,null,null,null,54,null,null,null,null,null,null,null,null,null,null,null,null,113,null,null,null,null,null,null,null,null,null,null,null,null,173,null,null,null,null,null,null,null,null,null,null,null,null,233]
[null,null,null,null,null,null,null,null,null,null,null,null,null,55,null,null,null,null,null,null,null,null,null,null,null,null,114,null,null,null,null,null,null,null,null,null,null,null,null,174,null,null,null,null,null,null,null,null,null,null,null,null,234]
[null,null,null,null,null,null,null,null,null,null,null,null,null,55,null,null,null,null,null,null,null,null,null,null,null,null,115,null,null,null,null,null,null,null,null,null,null,null,null,175,null,null,null,null,null,null,null,null,null,null,null,null,235]
[null,null,null,null,null,null,null,null,null,null,null,null,null,56,null,null,null,null,null,null,null,null,null,null,null,null,116,null,null,null,null,null,null,null,null,null,null,null,null,176,null,null,null,null,null,null,null,null,null,null,null,null,236]
[null,null,null,null,null,null,null,null,null,null,null,null,null,57,null,null,null,null,null,null,null,null,null,null,null,null,117,null,null,null,null,null,null,null,null,null,null,null,null,177,null,null,null,null,null,null,null,null,null,null,null,null,237]
[null,null,null,null,null,null,null,null,null,null,null,null,null,58,null,null,null,null,null,null,null,null,null,null,null,null,118,null,null,null,null,null,null,null,null,null,null,null,null,178,null,null,null,null,null,null,null,null,null,null,null,null,238]
[null,null,null,null,null,null,null,null,null,null,null,null,null,59,null,null,null,null,null,null,null,null,null,null,null,null,119,null,null,null,null,null,null,null,null,null,null,null,null,179,null,null,null,null,null,null,null,null,null,null,null,null,239]
[null,null,null,null,null,null,null,null,null,null,null,null,null,60,null,null,null,null,null,null,null,null,null,null,null,null,120,null,null,null,null,null,null,null,null,null,null,null,null,180,null,null,null,null,null,null,null,null,null,null,null,null,240]